fUSD/lending_fUSD_20240831
["ID","MTS","AMOUNT","RATE_DAILY","PERIOD"]
[336761427,1725116852749,325.520945,0.00010945,2]
[336761428,1725116873727,522.18,0.00010049,2]
[336761429,1725116885950,157.97,0.00010959,2]
[336761457,1725117031783,-550.0,0.00011,2]
[336761458,1725117031793,-2554.6015,0.00011244,2]
[336761459,1725117031832,-1714.25548784,0.00011244,2]
[336761460,1725117031843,-300.0,0.00011343,2]
[336761461,1725117031853,-154.64,0.00011706,2]
[336761462,1725117031863,-150.0,0.00011795,2]
[336761463,1725117031873,-900.0,0.0001183,2]
[336761464,1725117031882,-250.0,0.00011911,2]
[336761466,1725117031891,-502.07,0.00011946,2]
[336761467,1725117031901,-250.0,0.00011947,2]
[336761468,1725117031910,-153.32,0.0001197,2]
[336761469,1725117031919,-2785.49619044,0.00012002,2]
[336761470,1725117031929,-23900.0,0.00012012,2]
[336761471,1725117031939,-250.0,0.00012026,2]
[336761472,1725117031949,-190.35,0.00012037,2]
[336761473,1725117031959,-197.34,0.00012106,2]
[336761474,1725117031968,-1592.54,0.00012239,2]
[336761475,1725117031978,-522.18,0.00012313,2]
[336761476,1725117031987,-420.0,0.0001246,2]
[336761477,1725117031997,-192.24,0.00012627,2]
[336761478,1725117032007,-7244.6679,0.000128,2]
[336761479,1725117032016,-1413.97704,0.0001287,2]
[336761480,1725117032026,-191.57,0.00012886,2]
[336761481,1725117032036,-161.42524914,0.00012899,2]
[336761482,1725117032046,-259.19610968,0.00012899,2]
[336761483,1725117032055,-259.19610967,0.000129,2]
[336761484,1725117032064,-560.2683,0.000129,2]
[336761485,1725117032074,-205.6154,0.000129,2]
[336761486,1725117032083,-6141.93254271,0.000129,2]
[336761496,1725117037668,-2067.51755729,0.000129,2]
[336761497,1725117037678,-499.99,0.000129,2]
[336761499,1725117037687,-186.29187249,0.000129,2]
[336761501,1725117037697,-176.11046373,0.000129,2]
[336761502,1725117037706,-259.19610967,0.000129,2]
[336761503,1725117037715,-218.47,0.00012988,2]
[336761504,1725117037725,-2187.67082103,0.00012997,2]
[336761505,1725117037736,-541.27678215,0.00012997,2]
[336761506,1725117037757,-4396.43565693,0.00012997,2]
[336761507,1725117037767,-57603.56434307,0.00012998,2]
[336761508,1725117038081,-5162.99999999,0.00012998,2]
[336761509,1725117038092,-179070.5319334,0.00012998,2]
[336761510,1725117038111,-19979.20601758,0.00012998,2]
[336761517,1725117040054,-1448.13579149,0.00012998,2]
[336761518,1725117040066,-622.24531915,0.00012998,2]
[336761519,1725117040154,-1789.08360229,0.00012998,2]
[336761520,1725117040184,-300.0,0.00012998,2]
[336761628,1725117044016,-543.39927312,0.00011144,2]
[336761630,1725117044029,-1329.21328687,0.00011144,2]
[336761632,1725117044040,-522.36,0.00011144,2]
[336761634,1725117044052,-3178.32465912,0.00011144,2]
[336761638,1725117044080,-10721.14154265,0.00011144,2]
[336761640,1725117044091,-730.07140233,0.00011144,2]
[336761642,1725117044103,-652.62529538,0.00011144,2]
[336761645,1725117044115,-5103.40457836,0.00011144,2]
[336761647,1725117044126,-7576.59542106,0.00012998,2]
[336761650,1725117044149,-20464.29,0.00012998,2]
[336761652,1725117044160,-3606.14856082,0.00012998,2]
[336761655,1725117044171,-942.316296,0.00012998,2]
[336761657,1725117044183,-18386.04645497,0.00012998,2]
[336761659,1725117044195,-562.6023957,0.00012998,2]
[336761761,1725117045594,-330.0106221,0.00012899,2]
[336761762,1725117045606,-7400.49418971,0.00012998,2]
[336761763,1725117045619,-31612.47584126,0.00012998,2]
[336761764,1725117045631,-3929.113636,0.00012998,2]
[336761765,1725117045643,-743.3523116,0.00012998,2]
[336761766,1725117045654,-12213.40479688,0.00012998,2]
[336761767,1725117045691,-943.31862009,0.00012998,2]
[336761768,1725117045743,-257.38977317,0.00012998,2]
[336761769,1725117045758,-734.01641473,0.00012998,2]
[336761770,1725117045796,-812.74759037,0.00012998,2]
[336761771,1725117045847,-1874.06416438,0.00012998,2]
[336761772,1725117045860,-3145.66036694,0.00012998,2]
[336761773,1725117045872,-2588.96951999,0.00012998,2]
[336761774,1725117045884,-5784.84070337,0.00012998,2]
[336761775,1725117045901,-635.39287192,0.00012998,2]
[336761776,1725117045914,-33213.37472057,0.00012998,2]
[336761777,1725117046048,-1481.03401387,0.00012998,2]
[336761779,1725117076044,333.31,0.00010959,2]
[336761780,1725117083187,301.6885,0.000109,2]
[336761781,1725117373982,154.39,0.00010959,2]
[336761783,1725117461534,507.21,0.00010856,2]
[336761784,1725117858071,213.65,0.00010959,2]
[336761785,1725117952668,515.36,0.0001014,2]
[336761829,1725118231862,-550.0,0.00011,2]
[336761830,1725118231873,-251.03,0.00011764,2]
[336761831,1725118231883,-101.0120613,0.000119,2]
[336761832,1725118231909,-438.58020339,0.000119,2]
[336761833,1725118231920,-86.30872726,0.000119,2]
[336761834,1725118231930,-1000.0,0.00011948,2]
[336761835,1725118231939,-712.0,0.00012,2]
[336761836,1725118231950,-1500.0,0.00012003,2]
[336761837,1725118231959,-250.0,0.00012017,2]
[336761838,1725118231969,-250.0,0.00012017,2]
[336761839,1725118231978,-250.0,0.00012036,2]
[336761840,1725118231987,-4506.82584999,0.00012036,2]
[336761841,1725118231999,-4819.72288881,0.00012036,2]
[336761854,1725118237855,-4934.61017064,0.00012036,2]
[336761855,1725118237979,-21805.68109056,0.00012036,2]
[336761856,1725118237989,-2363.58,0.0001204,2]
[336761857,1725118237999,-6363.09,0.0001204,2]
[336761858,1725118238008,-191.57,0.00012046,2]
[336761859,1725118238019,-150.99,0.00012046,2]
[336761860,1725118238030,-499.99,0.00012046,2]
[336761861,1725118238041,-198.89,0.00012073,2]
[336761862,1725118238051,-197.34,0.00012076,2]
[336761863,1725118238061,-459.29,0.00012076,2]
[336761864,1725118238070,-515.36,0.00012404,2]
[336761865,1725118238080,-168.18,0.00012549,2]
[336761866,1725118238089,-150.99,0.0001258,2]
[336761867,1725118238099,-499.99,0.00012595,2]
[336761868,1725118238110,-192.25,0.00012708,2]
[336761869,1725118238120,-4506.43,0.00012708,2]
[336761870,1725118238132,-1455.44274,0.0001287,2]
[336761871,1725118238142,-330.0106221,0.00012898,2]
[336761872,1725118238153,-495.04238244,0.00012898,2]
[336761873,1725118238164,-495.04238244,0.00012898,2]
[336761874,1725118238173,-495.04238244,0.00012898,2]
[336761875,1725118238184,-495.04238244,0.00012899,2]
[336761876,1725118238195,-495.04238244,0.00012899,2]
[336761877,1725118238206,-495.04238244,0.00012899,2]
[336761878,1725118238216,-495.04238244,0.00012899,2]
[336761879,1725118238227,-495.04238244,0.000129,2]
[336761880,1725118238237,-495.04238244,0.000129,2]
[336761881,1725118238246,-170.8560502,0.000129,2]
[336761884,1725118238259,-330.0106221,0.000129,2]
[336761885,1725118238269,-3556.63258859,0.000129,2]
[336761886,1725118238279,-495.04238244,0.000129,2]
[336761887,1725118238290,-9300.70415626,0.000129,2]
[336761888,1725118238299,-165.19422617,0.000129,2]
[336761889,1725118238309,-150.63,0.00012988,2]
[336761890,1725118238318,-192169.50053188,0.0001299,9]
[336761891,1725118238328,-388.07971391,0.00012997,2]
[336761892,1725118238339,-61943.63527039,0.00012997,6]
[336761893,1725118238351,-234879.62294261,0.00012998,2]
[336761895,1725118238467,-373.6491406,0.00012998,2]
[336761896,1725118238483,-2538.4574776,0.00012998,2]
[336761897,1725118238495,-994.05234291,0.00012998,2]
[336761899,1725118239774,-869.59654346,0.00012998,2]
[336761900,1725118239927,-375.495108,0.00012998,2]
[336761901,1725118239940,-501.04428,0.00012998,2]
[336761902,1725118240148,-22194.97216554,0.00012998,2]
[336761903,1725118240160,-950.90019971,0.00012998,2]
[336761915,1725118244345,-3463.3328192,0.00012998,2]
[336761916,1725118244357,-16511.19999,0.00012998,2]
[336761917,1725118245820,-41585.00000015,0.00012998,2]
[336761918,1725118245847,-461.89422593,0.00012998,2]
[336761919,1725118245972,-13024.49221089,0.00012998,2]
[336761920,1725118245984,-6221.57328,0.00012998,2]
[336761921,1725118246089,-31086.5,0.00012998,2]
[336761922,1725118246121,-32218.05236745,0.00012998,2]
[336761923,1725118246130,-29914.37163255,0.00012998,2]
[336761926,1725118388338,168.12,0.00010959,2]
[336761927,1725118406805,500.0,0.0001087,2]
[336761928,1725118407047,500.0,0.00010871,2]
[336761929,1725118407486,500.0,0.00010871,2]
[336761930,1725118541821,493.99,0.00010415,2]
[336761932,1725119005803,500.0,0.00010331,2]
[336761933,1725119006227,500.0,0.00010332,2]
[336761934,1725119077129,497.87,0.00010167,2]
[336762662,1725119403956,151.99,9.123e-05,2]
[336762664,1725119432242,-171.09,0.00011859,2]
[336762665,1725119432251,-800.0,0.00011865,2]
[336762666,1725119432261,-250.0,0.00011868,2]
[336762667,1725119432270,-251.03,0.00011868,2]
[336762668,1725119432279,-1291.06092288,0.00011952,2]
[336762669,1725119432291,-921.72907712,0.00011952,2]
[336762670,1725119432300,-250.0,0.00011952,2]
[336762671,1725119432309,-250.0,0.00011974,2]
[336762672,1725119432319,-200.0,0.00012184,2]
[336762673,1725119432328,-154.63,0.00012332,2]
[336762674,1725119432337,-497.87,0.00012431,2]
[336762675,1725119432347,-499.99,0.00012712,2]
[336762676,1725119432356,-150.0,0.00012712,2]
[336762677,1725119432366,-150.0,0.00012766,2]
[336762678,1725119432376,-1836.812,0.000128,2]
[336762679,1725119432385,-1000.0,0.000128,2]
[336762680,1725119432395,-2500.0,0.000128,2]
[336762681,1725119432404,-234.82583917,0.000128,2]
[336762682,1725119432413,-3689.0,0.000128,3]
[336762683,1725119432423,-383.97432978,0.00012803,2]
[336762684,1725119432432,-15701.12486151,0.00012803,2]
[336762685,1725119432447,-4892.51513849,0.00012803,2]
[336762686,1725119432456,-358.32,0.00012803,2]
[336762687,1725119432465,-150.0,0.00012805,2]
[336762688,1725119432476,-383.97432978,0.00012814,2]
[336762689,1725119432485,-234.82583912,0.00012814,2]
[336762690,1725119432494,-383.97432978,0.00012825,2]
[336762691,1725119432503,-234.82583912,0.00012829,2]
[336762692,1725119432513,-383.97432978,0.00012835,2]
[336762693,1725119432522,-234.82583912,0.00012843,2]
[336762694,1725119432531,-383.97432978,0.00012846,2]
[336762695,1725119432540,-1515.62816062,0.00012853,2]
[336762696,1725119432550,-383.97432978,0.00012857,2]
[336762697,1725119432559,-234.82583912,0.00012857,2]
[336762698,1725119432568,-150.0,0.00012863,2]
[336762699,1725119432579,-383.97432978,0.00012868,2]
[336762700,1725119432588,-4644.06375209,0.0001287,2]
[336762701,1725119432597,-234.82583912,0.00012871,2]
[336762702,1725119432607,-383.97432978,0.00012878,2]
[336762703,1725119432617,-234.82583912,0.00012886,2]
[336762704,1725119432627,-383.97432978,0.00012889,2]
[336762705,1725119432637,-4421.4866,0.00012898,2]
[336762706,1725119432647,-1000.0,0.000129,2]
[336762707,1725119432656,-205.30954639,0.000129,2]
[336762708,1725119432665,-156.4355,0.000129,2]
[336762709,1725119432674,-63652.92692749,0.000129,2]
[336762710,1725119432686,-732.10144154,0.000129,2]
[336762711,1725119432697,-35614.97163097,0.000129,2]
[336762712,1725119432708,-145606.1145,0.000129,2]
[336762713,1725119432717,-383.97432978,0.000129,2]
[336762714,1725119432726,-6024.3287,0.000129,2]
[336762715,1725119432735,-992.59752974,0.000129,2]
[336762716,1725119432744,-1323.17583517,0.00012937,2]
[336762717,1725119432753,-523.37708839,0.00012973,2]
[336762718,1725119432763,-150.74,0.0001299,2]
[336762719,1725119432772,-150.74,0.0001299,2]
[336762720,1725119432782,-150.74,0.0001299,2]
[336762721,1725119432792,-150.74,0.0001299,2]
[336762722,1725119432801,-150.74,0.0001299,2]
[336762723,1725119432810,-150.74,0.0001299,2]
[336762724,1725119432820,-150.74,0.0001299,2]
[336762725,1725119432830,-10085.62836745,0.00012998,2]
[336762726,1725119432839,-2000.0,0.00012998,2]
[336762727,1725119432849,-200.0,0.00012998,2]
[336762728,1725119432858,-2000.0,0.00012998,2]
[336762729,1725119432868,-200.0,0.00012998,2]
[336762730,1725119432877,-6355.63761495,0.00012998,2]
[336762731,1725119432886,-1538.89297,0.00012998,2]
[336762732,1725119432896,-199.66111048,0.00012999,3]
[336762733,1725119432906,-1165.17268989,0.00012999,3]
[336762734,1725119432915,-195.62232327,0.00012999,2]
[336762735,1725119432925,-239.1380164,0.00012999,2]
[336762736,1725119432934,-4919.3752962,0.00012999,2]
[336762737,1725119432944,-500.0,0.00013,2]
[336762738,1725119432953,-12097.01900524,0.00013,2]
[336762739,1725119432964,-3484.77126725,0.00013,2]
[336762740,1725119432975,-1224.92496,0.00013,2]
[336762741,1725119432985,-620.41836,0.00013,2]
[336762742,1725119433000,-2219.57379425,0.00013,2]
[336762743,1725119433012,-1181.26213134,0.00013,2]
[336762744,1725119433023,-279.92831739,0.00013,2]
[336762745,1725119433037,-3603.53690901,0.00013,2]
[336762746,1725119433048,-2497.50370162,0.00013,2]
[336762747,1725119433059,-3601.21116243,0.00013,2]
[336762748,1725119433071,-462664.14716112,0.00013,2]
[336762749,1725119433082,-32123.09793523,0.00013,2]
[336762750,1725119433093,-676.1,0.00013,2]
[336762751,1725119433104,-3094.63215291,0.00013,2]
[336762752,1725119433128,-1245.568807,0.00013,2]
[336762753,1725119433151,-1474.18482912,0.00013,2]
[336762754,1725119433162,-2871.78515676,0.00013,2]
[336762755,1725119433173,-3753.76120749,0.00013,2]
[336762756,1725119433183,-2233.16988502,0.00013,2]
[336762757,1725119433193,-10808.08059513,0.00013,2]
[336762761,1725119438000,-234.82583912,0.000129,2]
[336762762,1725119438013,-706.60447407,0.00012997,2]
[336762763,1725119438030,-396.25029,0.00012997,2]
[336762764,1725119438053,-3971.22438609,0.00012997,2]
[336762765,1725119438068,-706.60447416,0.00013,2]
[336762766,1725119438309,-1474699.78939458,0.00013,2]
[336762769,1725119438343,-305.07545363,0.00013,2]
[336763005,1725119440739,-2664.405,0.00013,2]
[336763006,1725119440754,-410.325,0.00013,2]
[336763114,1725119444991,-18227.02481316,0.00013,2]
[336763118,1725119445019,-3786.25995735,0.00013,2]
[336763120,1725119445033,-2583.8,0.00013,2]
[336763219,1725119446046,-1334.747668,0.00013,2]
[336763221,1725119446058,-946.21399857,0.00013,2]
[336763229,1725119446160,-2000.0,0.00013,2]
[336763235,1725119446272,-669.58337309,0.00013,2]
[336763237,1725119446283,-12234.37967999,0.00013,2]
[336763243,1725119446384,-276.75,0.00013,2]
[336763245,1725119446396,-6118.04624,0.00013,2]
[336763597,1725119915018,157.97,0.00010959,2]
[336763600,1725119994457,151.99,9.241e-05,2]
[336763601,1725120194014,505.67,9.946e-05,2]
[336763602,1725120210782,11504.0,0.000109,5]
[336763603,1725120394207,-550.0,0.00011,2]
[336763604,1725120433080,165.18,0.00010959,2]
[336764100,1725120632023,-909.30987856,0.00011787,2]
[336764101,1725120632036,-636.79253411,0.00011787,2]
[336764102,1725120632048,-603.91888408,0.00011787,2]
[336764103,1725120632079,-1275.64870325,0.00011787,2]
[336764104,1725120632089,-200.0,0.00011788,2]
[336764105,1725120632098,-640.0,0.00011809,2]
[336764106,1725120632108,-608.17,0.0001183,2]
[336764107,1725120632118,-172.32,0.00011831,2]
[336764108,1725120632128,-250.0,0.00011831,2]
[336764109,1725120632138,-250.0,0.00011849,2]
[336764110,1725120632148,-190.59,0.00011854,2]
[336764111,1725120632157,-250.0,0.00011861,2]
[336764112,1725120632167,-152.96,0.00011869,2]
[336764113,1725120632176,-47.05878151,0.00011869,2]
[336764114,1725120632188,-1438.08121849,0.00011869,2]
[336764115,1725120632198,-499.99,0.00011869,2]
[336764116,1725120632207,-299.99,0.0001187,2]
[336764117,1725120632217,-150.99,0.0001187,2]
[336764118,1725120632226,-103.99862245,0.00011972,2]
[336764119,1725120632237,-244.87137755,0.00011972,2]
[336764120,1725120632246,-505.67,0.0001221,2]
[336764121,1725120632255,-360.0,0.00012338,2]
[336764122,1725120632265,-181.34,0.00012442,2]
[336764123,1725120632274,-405.14745185,0.0001258,2]
[336764124,1725120632285,-161.16084761,0.0001258,2]
[336764125,1725120632293,-566.30829937,0.00012616,2]
[336764126,1725120632301,-4.35399771,0.0001265,2]
[336764127,1725120632311,-295.64600229,0.0001265,2]
[336764128,1725120632320,-205.58937915,0.00012651,2]
[336764129,1725120632332,-360.71892022,0.00012651,2]
[336764130,1725120632341,-150.0,0.00012679,2]
[336764131,1725120632350,-2392.99414964,0.0001268,2]
[336764132,1725120632361,-3421.55845167,0.0001268,2]
[336764133,1725120632376,-2029.44794991,0.0001268,2]
[336764134,1725120632388,-315.0,0.0001268,2]
[336764135,1725120632400,-1381.95190557,0.0001268,2]
[336764136,1725120632411,-712.02367317,0.0001268,2]
[336764138,1725120632423,-606.42780401,0.0001268,2]
[336764139,1725120632435,-619.65174307,0.0001268,2]
[336764140,1725120632536,-8881.16247119,0.0001268,2]
[336764141,1725120632549,-7100.69533894,0.0001268,2]
[336764142,1725120632561,-6683.26958659,0.0001268,2]
[336764143,1725120632572,-2879.4795,0.0001268,2]
[336764144,1725120632584,-1339.32568212,0.0001268,2]
[336764145,1725120632611,-1717.22303985,0.0001268,2]
[336764146,1725120632624,-1226.51846453,0.0001268,2]
[336764147,1725120632636,-569.99999994,0.0001268,2]
[336764148,1725120632650,-351.899999,0.0001268,2]
[336764149,1725120632661,-787.72537109,0.0001268,2]
[336764150,1725120632675,-753.09403611,0.0001268,2]
[336764151,1725120632692,-474.46635641,0.0001268,2]
[336764152,1725120632704,-740.97,0.0001268,2]
[336764153,1725120632717,-7108.43953814,0.0001268,2]
[336764154,1725120632729,-2862.03116841,0.0001268,2]
[336764155,1725120632741,-8853.44274664,0.0001268,2]
[336764156,1725120632752,-445.10286169,0.0001268,2]
[336764162,1725120638167,-509.16789362,0.0001268,2]
[336764163,1725120638178,-1019.83248483,0.0001268,2]
[336764164,1725120638190,-1338.81048834,0.0001268,2]
[336764165,1725120638202,-785.23100942,0.0001268,2]
[336764166,1725120638213,-1294.19060398,0.0001268,2]
[336764167,1725120638237,-7214.73959698,0.0001268,2]
[336764168,1725120638250,-830.76722118,0.0001268,2]
[336764169,1725120638261,-345.44,0.0001268,2]
[336764170,1725120638272,-6525.06999584,0.0001268,2]
[336764171,1725120638284,-1023.66957717,0.0001268,2]
[336764172,1725120638295,-285.89639991,0.0001268,2]
[336764173,1725120638307,-2506.77543946,0.0001268,2]
[336764174,1725120638318,-2604.69232305,0.0001268,2]
[336764175,1725120638330,-7969.17193469,0.0001268,2]
[336764176,1725120638341,-3458.69314524,0.0001268,2]
[336764177,1725120638358,-845.302431,0.0001268,2]
[336764178,1725120638369,-44420.01017337,0.0001268,2]
[336764179,1725120638379,-6332.84731973,0.0001268,2]
[336764180,1725120638390,-9447.63151361,0.0001268,2]
[336764181,1725120638402,-776.13448639,0.0001268,2]
[336764182,1725120638412,-566.30829937,0.00012687,2]
[336764183,1725120638422,-420.93977412,0.00012689,2]
[336764184,1725120638431,-1000.0,0.000127,2]
[336764185,1725120638440,-566.30829937,0.00012722,2]
[336764186,1725120638450,-566.30829937,0.00012758,2]
[336764187,1725120638459,-566.30829937,0.00012793,2]
[336764188,1725120638468,-1000.0,0.000128,2]
[336764189,1725120638477,-553.9641162,0.000128,2]
[336764190,1725120638489,-1083.44152584,0.000128,2]
[336764191,1725120638500,-5340.98495427,0.000128,2]
[336764192,1725120638511,-338.26352533,0.000128,2]
[336764196,1725120639894,-57403.53337836,0.000128,2]
[336764197,1725120639905,-2768.0693,0.000128,2]
[336764198,1725120639914,-400.97671974,0.000128,2]
[336764199,1725120639923,-150.0,0.000128,2]
[336764200,1725120639933,-400.97671968,0.00012814,2]
[336764201,1725120639942,-400.97671968,0.00012829,2]
[336764202,1725120639952,-566.30829937,0.00012829,2]
[336764203,1725120639961,-400.97671968,0.00012843,2]
[336764204,1725120639970,-400.97671968,0.00012857,2]
[336764205,1725120639980,-566.30829937,0.00012864,2]
[336764206,1725120639990,-400.97671968,0.00012871,2]
[336764207,1725120640000,-400.97671968,0.00012886,2]
[336764208,1725120640010,-500.0,0.00012896,2]
[336764209,1725120640020,-710.4045,0.00012898,2]
[336764211,1725120640030,-500.0,0.00012899,2]
[336764212,1725120640040,-500.0,0.00012899,2]
[336764213,1725120640050,-500.0,0.00012899,2]
[336764214,1725120640060,-500.0,0.00012899,2]
[336764215,1725120640070,-500.0,0.00012899,2]
[336764216,1725120640080,-337.41089541,0.00012899,2]
[336764217,1725120640090,-500.0,0.00012899,2]
[336764218,1725120640099,-500.0,0.00012899,2]
[336764219,1725120640109,-500.0,0.00012899,2]
[336764220,1725120640118,-500.0,0.00012899,2]
[336764221,1725120640128,-500.0,0.00012899,2]
[336764222,1725120640137,-468.94646759,0.00012899,2]
[336764223,1725120640147,-500.0,0.00012899,2]
[336764224,1725120640160,-500.0,0.00012899,2]
[336764225,1725120640171,-500.0,0.00012899,2]
[336764226,1725120640181,-500.0,0.00012899,2]
[336764227,1725120640191,-500.0,0.00012899,2]
[336764228,1725120640200,-500.0,0.00012899,2]
[336764229,1725120640210,-500.0,0.00012899,2]
[336764230,1725120640219,-500.0,0.00012899,2]
[336764231,1725120640229,-500.0,0.00012899,2]
[336764232,1725120640238,-500.0,0.00012899,2]
[336764233,1725120640247,-447.27561891,0.00012899,2]
[336764234,1725120640257,-500.0,0.00012899,2]
[336764235,1725120640266,-500.0,0.00012899,2]
[336764236,1725120640275,-500.0,0.00012899,2]
[336764237,1725120640286,-500.0,0.00012899,2]
[336764238,1725120640295,-500.0,0.00012899,2]
[336764239,1725120640305,-500.0,0.00012899,2]
[336764240,1725120640314,-500.0,0.00012899,2]
[336764241,1725120640323,-523.56410546,0.00012899,2]
[336764242,1725120640333,-2726.451,0.000129,2]
[336764243,1725120640342,-5751.3402,0.000129,2]
[336764244,1725120640351,-163591.5303,0.000129,2]
[336764245,1725120640361,-175.9796112,0.000129,2]
[336764246,1725120640370,-7500.0,0.000129,2]
[336764247,1725120640379,-400.97671968,0.000129,2]
[336764248,1725120640389,-566.30829937,0.000129,2]
[336764249,1725120640398,-1426.61728777,0.000129,2]
[336764250,1725120640410,-150.5,0.00012989,2]
[336764251,1725120640419,-150.5,0.0001299,2]
[336764252,1725120640429,-150.5,0.0001299,2]
[336764253,1725120640438,-150.5,0.0001299,2]
[336764254,1725120640447,-4528.3290834,0.00012994,2]
[336764255,1725120640456,-34739.4425958,0.00012994,2]
[336764256,1725120640466,-1000.0,0.00012999,2]
[336764257,1725120640475,-1000.0,0.00012999,2]
[336764258,1725120640484,-1000.0,0.00012999,2]
[336764259,1725120640494,-1000.0,0.00012999,2]
[336764260,1725120640503,-1000.0,0.00012999,2]
[336764261,1725120640513,-1000.0,0.00012999,2]
[336764262,1725120640522,-1000.0,0.00012999,2]
[336764263,1725120640531,-1000.0,0.00012999,2]
[336764264,1725120640540,-1000.0,0.00012999,2]
[336764265,1725120640549,-1000.0,0.00012999,2]
[336764266,1725120640558,-1000.0,0.00012999,2]
[336764267,1725120640567,-1000.0,0.00012999,2]
[336764268,1725120640577,-1000.0,0.00012999,2]
[336764269,1725120640588,-1000.0,0.00012999,2]
[336764270,1725120640597,-1000.0,0.00012999,2]
[336764271,1725120640606,-1000.0,0.00012999,2]
[336764272,1725120640616,-1000.0,0.00012999,2]
[336764273,1725120640627,-1000.0,0.00012999,2]
[336764274,1725120640636,-1000.0,0.00012999,2]
[336764275,1725120640645,-1000.0,0.00012999,2]
[336764276,1725120640654,-1000.0,0.00012999,2]
[336764277,1725120640668,-1000.0,0.00012999,2]
[336764278,1725120640677,-1000.0,0.00012999,2]
[336764279,1725120640687,-1000.0,0.00012999,2]
[336764280,1725120640696,-1000.0,0.00012999,2]
[336764281,1725120640706,-689.0,0.00012999,2]
[336764282,1725120640716,-1110.28091693,0.00012999,3]
[336764283,1725120640725,-251876.72585925,0.00013,2]
[336764284,1725120640738,-7793.65722109,0.00013,2]
[336764285,1725120640749,-30464.65589235,0.00013,2]
[336764286,1725120640765,-421.399227,0.00013,2]
[336764287,1725120641111,-476.45777715,0.00013,2]
[336764288,1725120641122,-6775.49262531,0.00013,2]
[336764289,1725120641134,-59377.57373107,0.00013,2]
[336764290,1725120641146,-1986.34492326,0.00013,2]
[336764291,1725120641161,-478.75263346,0.00013,2]
[336764292,1725120641178,-9964.11812192,0.00013,2]
[336764293,1725120641190,-660.549,0.00013,2]
[336764294,1725120641201,-844.59940541,0.00013,2]
[336764295,1725120641249,-267.84,0.00013,2]
[336764296,1725120641264,-475127.56990678,0.00013,2]
[336764297,1725120641277,-1320.30702076,0.00013,2]
[336764298,1725120641289,-1663.5002,0.00013,2]
[336764299,1725120641301,-2303.5,0.00013,2]
[336764300,1725120641313,-304.33735203,0.00013,2]
[336764301,1725120641325,-1538.68853478,0.00013,2]
[336764302,1725120641337,-602.7973578,0.00013,2]
[336764303,1725120641348,-889.49999995,0.00013,2]
[336764304,1725120641361,-864.85,0.00013,2]
[336764305,1725120641373,-400.075,0.00013,2]
[336764306,1725120641385,-342.31367374,0.00013,2]
[336764307,1725120641412,-208498.07180259,0.00013,2]
[336764308,1725120641423,-33598.95918226,0.00013,2]
[336764309,1725120641434,-38721.42066455,0.00013,2]
[336764310,1725120641446,-6678.40024662,0.00013,2]
[336764311,1725120641457,-578.06080476,0.00013,2]
[336764352,1725120643157,-3035.63486649,0.00013,2]
[336764355,1725120643169,-2142.91,0.00013,2]
[336764540,1725120645316,-336.84091214,0.00013,2]
[336764542,1725120645328,-13190.16168377,0.00013,2]
[336764544,1725120645344,-1202.82442801,0.00013,2]
[336764545,1725120645359,-500.57827625,0.00013,2]
[336764569,1725120646121,-1584.71997666,0.00013,2]
[336764570,1725120646133,-2008.43148739,0.00013,2]
[336764571,1725120646145,-298.90881452,0.00013,2]
[336764572,1725120646218,-1039.13489298,0.00013,2]
[336764573,1725120646229,-648.49999999,0.00013,2]
[336764578,1725120646326,-5266.159,0.00013,2]
[336764588,1725120646410,-12370.4,0.00013,2]
[336764590,1725120646422,-14762.86185985,0.00013,2]
[336764592,1725120646433,-455.2704325,0.00013,2]
[336764916,1725120716383,477.94,0.00010852,2]